[Event "Almaty Open 2019"]
[Site "Almaty"]
[Date "2019.10.10"]
[Round "5.10"]
[White "Rakhimzhan, Alen"]
[Black "Dzhumaev, Marat"]
[Result "1-0"]
[ECO "E91"]
[WhiteElo "2303"]
[BlackElo "2428"]
[Annotator "ChessBase"]
[PlyCount "105"]
[EventDate "2019.10.07"]
[EventType "swiss"]
[EventCountry "KAZ"]
[SourceTitle "playchess.com"]
[Source "ChessBase"]
[SourceQuality "1"]
[TimeControl "5400+30"]

1. d4 {[%emt 0:14:07]} d6 {[%emt 0:00:18]} 2. Nf3 {[%emt 0:00:17]} Nf6 {[%emt 0:00:17]} 3. c4 {[%emt 0:00:10]} g6 {[%emt 0:00:10]} 4. Nc3 {[%emt 0:00:06]} Bg7 {[%emt 0:00:08]} 5. e4 {[%emt 0:00:14]} O-O {[%emt 0:00:12]} 6. Be2 {[%emt 0:00:04]} c5 {[%emt 0:05:17]} 7. d5 {[%emt 0:00:11]} e6 {[%emt 0:00:36]} 8. O-O {[%emt 0:00:11]} b6 {[%emt 0:08:04]} 9. dxe6 {[%emt 0:03:52]} Bxe6 {[%emt 0:00:10]} 10. Ng5 {[%emt 0:00:52]} Nc6 {[%emt 0:01:40]} 11. Nxe6 {[%emt 0:01:04]} fxe6 {[%emt 0:00:11]} 12. Be3 {[%emt 0:02:36]} a6 {[%emt 0:19:02]} 13. Qd2 {[%emt 0:02:20]} Ra7 {[%emt 0:00:43]} 14. Rad1 {[%emt 0:01:35]} Rd7 {[%emt 0:00:11]} 15. Rde1 {[%emt 0:00:03]} Qb8 {[%emt 0:04:22]} 16. f4 {[%emt 0:02:36]} Kh8 {[%emt 0:07:29]} 17. g4 {[%emt 0:13:52]} Ne8 {[%emt 0:21:32]} 18. g5 {[%emt 0:02:39]} Bd4 {[%emt 0:00:14]} 19. Bg4 {[%emt 0:00:44]} Re7 {[%emt 0:00:22]} 20. Bxd4+ {[%emt 0:16:47]} Nxd4 {[%emt 0:00:19]} 21. Ne2 {[%emt 0:01:12]} Nxe2+ {[%emt 0:00:53]} 22. Rxe2 {[%emt 0:00:36]} Ng7 {[%emt 0:00:07]} 23. Rd1 {[%emt 0:05:11]} Ree8 {[%emt 0:10:32]} 24. Rf2 {[%emt 0:05:52]} Rd8 {[%emt 0:00:09]} 25. Qe3 {[%emt 0:03:27]} b5 {[%emt 0:03:39]} 26. cxb5 {[%emt 0:00:41]} Qxb5 {[%emt 0:00:40]} 27. Qc3 {[%emt 0:06:27]} d5 {[%emt 0:04:58]} 28. Bxe6 {[%emt 0:02:34]} dxe4 {[%emt 0:00:28]} 29. Rfd2 {[%emt 0:06:57]} Rd4 {[%emt 0:08:50]} 30. Rxd4 {[%emt 0:00:29]} cxd4 {[%emt 0:00:06]} 31. Qxd4 {[%emt 0:00:14]} Qe2 {[%emt 0:00:17]} 32. Bh3 {[%emt 0:02:33]} e3 {[%emt 0:00:20]} 33. Rf1 {[%emt 0:00:16]} Re8 {[%emt 0:01:36]} 34. Bd7 {[%emt 0:00:39]} Rd8 {[%emt 0:01:53]} 35. Qf6 {[%emt 0:00:07]} Ra8 {[%emt 0:00:20]} 36. Bc6 {[%emt 0:04:45]} Rc8 {[%emt 0:00:49]} 37. Bf3 {[%emt 0:00:27]} Qd2 {[%emt 0:00:27]} 38. Qxa6 {[%emt 0:00:29]} Re8 {[%emt 0:00:36]} 39. Qe2 {[%emt 0:00:35]} Qd4 {[%emt 0:00:18]} 40. Bg4 {[%emt 0:00:51]} Rf8 {[%emt 0:00:34]} 41. Rf3 {[%emt 0:00:36]} Re8 {[%emt 0:00:34]} 42. h3 {[%emt 0:00:51]} Qc5 {[%emt 0:00:33]} 43. Rf1 {[%emt 0:00:25]} Qd4 {[%emt 0:00:11]} 44. Kh2 {[%emt 0:00:40]} Re7 {[%emt 0:00:31]} 45. Kg3 {[%emt 0:00:32]} Ne8 {[%emt 0:00:17]} 46. Rd1 {[%emt 0:00:13]} Qb6 {[%emt 0:00:12]} 47. Rd7 {[%emt 0:00:49]} Rxd7 {[%emt 0:00:12]} 48. Bxd7 {[%emt 0:00:03]} Nd6 {[%emt 0:00:05]} 49. Qd3 {[%emt 0:00:40]} Kg8 {[%emt 0:02:21]} 50. Bg4 {[%emt 0:00:37]} Kf8 {[%emt 0:00:36]} 51. Kf3 {[%emt 0:00:35]} Nb5 {[%emt 0:00:37]} 52. Qxe3 {[%emt 0:00:27]} Nd4+ 53. Ke4 1-0

[Event "Almaty Open 2019"]
[Site "Almaty"]
[Date "2019.10.10"]
[Round "5.11"]
[White "Tologontegin, Semetey"]
[Black "Isanzhulov, Arystan"]
[Result "0-1"]
[ECO "A36"]
[WhiteElo "2384"]
[BlackElo "2305"]
[Annotator "ChessBase"]
[PlyCount "110"]
[EventDate "2019.10.07"]
[EventType "swiss"]
[EventCountry "KAZ"]
[SourceTitle "playchess.com"]
[Source "ChessBase"]
[SourceQuality "1"]
[TimeControl "5400+30"]

1. c4 {[%emt 0:06:57]} c5 {[%emt 0:03:52]} 2. g3 {[%emt 0:00:32]} g6 {[%emt 0:01:30]} 3. Bg2 {[%emt 0:00:22]} Bg7 {[%emt 0:00:06]} 4. Nc3 {[%emt 0:00:07]} Nc6 {[%emt 0:02:17]} 5. b3 {[%emt 0:00:40]} d6 {[%emt 0:07:07]} 6. Bb2 {[%emt 0:00:33]} Nh6 {[%emt 0:04:54]} 7. h4 {[%emt 0:10:49]} O-O {[%emt 0:03:26]} 8. e3 {[%emt 0:04:51]} Rb8 {[%emt 0:01:14]} 9. Nge2 {[%emt 0:00:58]} a6 {[%emt 0:09:14]} 10. d3 {[%emt 0:01:40]} Ng4 {[%emt 0:16:26]} 11. h5 {[%emt 0:06:25]} Bd7 {[%emt 0:10:50]} 12. Qd2 {[%emt 0:10:59]} b5 {[%emt 0:05:08]} 13. f3 {[%emt 0:04:30]} Nge5 {[%emt 0:12:55]} 14. f4 {[%emt 0:25:47]} Ng4 {[%emt 0:00:52]} 15. hxg6 {[%emt 0:00:07]} hxg6 {[%emt 0:00:58]} 16. Rh4 {[%emt 0:01:55]} Nb4 {[%emt 0:01:13]} 17. Rxg4 {[%emt 0:08:32]} Bxg4 {[%emt 0:00:20]} 18. a3 {[%emt 0:00:19]} bxc4 {[%emt 0:03:35]} 19. dxc4 {[%emt 0:00:06]} Bxe2 {[%emt 0:00:52]} 20. Kxe2 {[%emt 0:01:12]} Nd3 {[%emt 0:04:21]} 21. Qxd3 {[%emt 0:01:06]} Rxb3 {[%emt 0:00:01]} 22. Qc2 {[%emt 0:05:06]} Qb6 {[%emt 0:00:14]} 23. Ra2 {[%emt 0:03:36]} Rb8 {[%emt 0:00:17]} 24. Ba1 {[%emt 0:00:01]} e6 {[%emt 0:00:17]} 25. Nd1 {[%emt 0:01:59]} Bxa1 {[%emt 0:01:29]} 26. Rxa1 {[%emt 0:00:01]} Qa5 {[%emt 0:00:13]} 27. Qc1 {[%emt 0:01:30]} Kg7 {[%emt 0:00:34]} 28. Qd2 {[%emt 0:01:13]} Qxd2+ {[%emt 0:00:41]} 29. Kxd2 {[%emt 0:00:03]} Rb2+ {[%emt 0:00:03]} 30. Nxb2 {[%emt 0:00:03]} Rxb2+ {[%emt 0:00:04]} 31. Kc3 {[%emt 0:01:54]} Rxg2 {[%emt 0:00:03]} 32. Rb1 {[%emt 0:00:03]} Rxg3 {[%emt 0:01:07]} 33. Kd3 {[%emt 0:00:57]} d5 {[%emt 0:00:13]} 34. cxd5 {[%emt 0:00:16]} exd5 {[%emt 0:00:03]} 35. Rb6 {[%emt 0:00:02]} d4 {[%emt 0:00:14]} 36. Rxa6 Rxe3+ {[%emt 0:00:04]} 37. Kc4 {[%emt 0:00:19]} Rc3+ {[%emt 0:00:39]} 38. Kb5 {[%emt 0:00:04]} d3 {[%emt 0:06:14]} 39. a4 {[%emt 0:00:10]} c4 {[%emt 0:01:24]} 40. Rd6 {[%emt 0:00:12]} Ra3 {[%emt 0:00:43]} 41. a5 {[%emt 0:01:08]} c3 {[%emt 0:00:32]} 42. Rxd3 {[%emt 0:00:03]} c2 {[%emt 0:00:03]} 43. Rxa3 {[%emt 0:00:05]} c1=Q {[%emt 0:00:04]} 44. Ra4 {[%emt 0:00:07]} Qb1+ {[%emt 0:01:31]} 45. Rb4 {[%emt 0:01:02]} Qd3+ {[%emt 0:01:44]} 46. Kb6 {[%emt 0:00:04]} Qd6+ {[%emt 0:00:17]} 47. Kb5 {[%emt 0:00:07]} Qb8+ {[%emt 0:00:36]} 48. Kc5 {[%emt 0:02:01]} Qc7+ {[%emt 0:00:15]} 49. Kb5 {[%emt 0:00:04]} Qb7+ {[%emt 0:00:03]} 50. Ka4 {[%emt 0:00:30]} Qc6+ {[%emt 0:00:45]} 51. Ka3 {[%emt 0:02:44]} Kh6 {[%emt 0:01:04]} 52. f5 {[%emt 0:01:00]} Qc3+ {[%emt 0:01:31]} 53. Ka4 {[%emt 0:00:06]} Qc2+ {[%emt 0:00:18]} 54. Rb3 {[%emt 0:00:07]} gxf5 {[%emt 0:00:33]} 55. a6 {[%emt 0:00:04]} Qc4+ {[%emt 0:00:04]} 0-1

[Event "Almaty Open 2019"]
[Site "Almaty"]
[Date "2019.10.10"]
[Round "5.12"]
[White "Serikbay, Chingiz"]
[Black "Mezentsev, Ivan"]
[Result "1/2-1/2"]
[ECO "A05"]
[WhiteElo "2298"]
[BlackElo "2351"]
[Annotator "ChessBase"]
[PlyCount "87"]
[EventDate "2019.10.07"]
[EventType "swiss"]
[EventCountry "KAZ"]
[SourceTitle "playchess.com"]
[Source "ChessBase"]
[SourceQuality "1"]
[TimeControl "5400+30"]

1. Nf3 {[%emt 0:00:00]} Nf6 {[%emt 0:08:01]} 2. c4 {[%emt 0:00:00]} e6 {[%emt 0:00:40]} 3. g3 {[%emt 0:00:16]} d5 {[%emt 0:01:43]} 4. d4 {[%emt 0:00:06]} Bb4+ {[%emt 0:00:23]} 5. Bd2 {[%emt 0:00:05]} Be7 {[%emt 0:02:11]} 6. Bg2 {[%emt 0:00:17]} O-O {[%emt 0:00:54]} 7. Qc2 {[%emt 0:01:38]} b6 {[%emt 0:01:54]} 8. O-O {[%emt 0:01:36]} Bb7 {[%emt 0:01:16]} 9. cxd5 {[%emt 0:08:38]} exd5 {[%emt 0:05:15]} 10. Bf4 {[%emt 0:00:33]} c6 {[%emt 0:12:33]} 11. Nc3 {[%emt 0:00:34]} Nbd7 {[%emt 0:01:36]} 12. Rad1 {[%emt 0:00:43]} Nh5 {[%emt 0:06:49]} 13. Bc1 {[%emt 0:06:10]} f5 {[%emt 0:01:40]} 14. Ne5 {[%emt 0:08:49]} g6 {[%emt 0:02:04]} 15. Bh6 {[%emt 0:09:14]} Ng7 {[%emt 0:00:20]} 16. Nxd7 {[%emt 0:19:56]} Qxd7 {[%emt 0:00:13]} 17. f3 {[%emt 0:02:06]} Bf6 {[%emt 0:09:16]} 18. Kh1 {[%emt 0:03:25]} Rf7 {[%emt 0:01:47]} 19. e4 {[%emt 0:10:16]} dxe4 {[%emt 0:01:57]} 20. fxe4 {[%emt 0:00:02]} Bxd4 {[%emt 0:00:23]} 21. Bxg7 {[%emt 0:07:50]} Kxg7 {[%emt 0:01:36]} 22. exf5 {[%emt 0:00:36]} gxf5 {[%emt 0:06:10]} 23. Ne2 {[%emt 0:01:08]} c5 {[%emt 0:00:19]} 24. Nxd4 {[%emt 0:00:49]} cxd4 {[%emt 0:00:33]} 25. Bxb7 {[%emt 0:09:51]} Qxb7+ {[%emt 0:00:05]} 26. Kg1 {[%emt 0:00:02]} Qd5 {[%emt 0:01:29]} 27. Rf4 {[%emt 0:00:29]} Rd8 {[%emt 0:02:00]} 28. Qd3 {[%emt 0:01:13]} Qxa2 {[%emt 0:05:21]} 29. Rxd4 {[%emt 0:00:01]} Rxd4 {[%emt 0:01:13]} 30. Qxd4+ {[%emt 0:00:01]} Rf6 {[%emt 0:00:46]} 31. Re1 {[%emt 0:00:49]} Qf7 {[%emt 0:07:11]} 32. Qd8 {[%emt 0:00:06]} Re6 {[%emt 0:01:21]} 33. Qg5+ {[%emt 0:00:41]} Kf8 {[%emt 0:04:56]} 34. Rd1 {[%emt 0:00:02]} Qg6 {[%emt 0:06:18]} 35. Qf4 {[%emt 0:00:02]} Re7 {[%emt 0:01:47]} 36. Rd5 {[%emt 0:02:25]} Rf7 {[%emt 0:01:42]} 37. Rd6 {[%emt 0:00:56]} Rf6 {[%emt 0:00:19]} 38. Rd7 {[%emt 0:01:00]} Rf7 {[%emt 0:00:22]} 39. Qb8+ {[%emt 0:02:25]} Kg7 {[%emt 0:00:18]} 40. Qxa7 {[%emt 0:01:26]} Rxd7 {[%emt 0:00:22]} 41. Qxd7+ {[%emt 0:00:01]} Kh6 {[%emt 0:02:17]} 42. Qd4 {[%emt 0:01:57]} Qe6 {[%emt 0:00:39]} 43. Kf2 {[%emt 0:00:21]} Kg6 {[%emt 0:00:20]} 44. h3 {[%emt 0:01:14]} 1/2-1/2

[Event "Almaty Open 2019"]
[Site "Almaty"]
[Date "2019.10.10"]
[Round "5.13"]
[White "Malygin, Vladislav"]
[Black "Zhukenov, Aituar"]
[Result "1/2-1/2"]
[ECO "B36"]
[WhiteElo "1941"]
[BlackElo "2196"]
[Annotator "NA"]
[PlyCount "51"]
[EventDate "2019.10.07"]
[EventType "swiss"]
[EventCountry "KAZ"]
[SourceTitle "playchess.com"]
[Source "ChessBase"]
[SourceQuality "1"]
[TimeControl "5400+30"]

1. c4 {[%emt 0:01:29]} c5 {[%emt 0:01:03]} 2. Nf3 {[%emt 0:00:07]} Nc6 {[%emt 0:00:05]} 3. d4 {[%emt 0:00:04]} cxd4 {[%emt 0:00:17]} 4. Nxd4 {[%emt 0:00:07]} g6 {[%emt 0:01:58]} 5. e4 {[%emt 0:00:41]} Nf6 {[%emt 0:00:24]} 6. Nc3 {[%emt 0:00:09]} Nxd4 {[%emt 0:00:06]} 7. Qxd4 {[%emt 0:00:06]} d6 {[%emt 0:00:07]} 8. Be2 {[%emt 0:00:24]} Bg7 {[%emt 0:00:09]} 9. Be3 {[%emt 0:03:15]} O-O {[%emt 0:00:19]} 10. Qd2 {[%emt 0:00:42]} a5 {[%emt 0:01:29]} 11. O-O {[%emt 0:01:09]} Bd7 {[%emt 0:09:07]} 12. f3 {[%emt 0:01:32]} Bc6 {[%emt 0:02:26]} 13. Rac1 {[%emt 0:03:44]} a4 {[%emt 0:06:22]} 14. Nd5 {[%emt 0:03:07]} Nd7 {[%emt 0:03:00]} 15. Qb4 {[%emt 0:03:27]} Re8 {[%emt 0:07:59]} 16. Rfd1 {[%emt 0:04:31]} Qa5 {[%emt 0:10:40]} 17. Qxa5 {[%emt 0:05:09]} Rxa5 {[%emt 0:00:05]} 18. Rc2 {[%emt 0:00:39]} Bxd5 {[%emt 0:04:33]} 19. cxd5 {[%emt 0:01:05]} Nc5 {[%emt 0:01:16]} 20. Bxc5 {[%emt 0:05:19]} dxc5 {[%emt 0:01:25]} 21. Kf1 {[%emt 0:01:43]} Bd4 {[%emt 0:06:31]} 22. b4 {[%emt 0:00:28]} axb3 {[%emt 0:00:19]} 23. axb3 {[%emt 0:00:04]} Rea8 {[%emt 0:04:56]} 24. b4 {[%emt 0:05:04]} Ra2 {[%emt 0:00:29]} 25. Rxa2 {[%emt 0:00:13]} Rxa2 {[%emt 0:00:01]} 26. bxc5 {[%emt 0:00:10]} 1/2-1/2

[Event "Almaty Open 2019"]
[Site "Almaty"]
[Date "2019.10.10"]
[Round "5.14"]
[White "Balabayeva, Xeniya"]
[Black "Sisabayev, Kuanysh"]
[Result "0-1"]
[ECO "B27"]
[WhiteElo "1986"]
[BlackElo "2289"]
[Annotator "ChessBase"]
[PlyCount "118"]
[EventDate "2019.10.07"]
[EventType "swiss"]
[EventCountry "KAZ"]
[SourceTitle "playchess.com"]
[Source "ChessBase"]
[SourceQuality "1"]
[TimeControl "5400+30"]

1. e4 {[%emt 0:00:00]} c5 {[%emt 0:07:36]} 2. Nf3 {[%emt 0:00:00]} g6 {[%emt 0:01:32]} 3. d4 {[%emt 0:00:00]} Bg7 {[%emt 0:00:16]} 4. dxc5 {[%emt 0:00:00]} Qa5+ {[%emt 0:00:50]} 5. c3 {[%emt 0:00:07]} Qxc5 {[%emt 0:00:11]} 6. Na3 {[%emt 0:03:09]} Nf6 {[%emt 0:10:15]} 7. Nb5 {[%emt 0:16:58]} O-O {[%emt 0:07:40]} 8. Be3 {[%emt 0:07:59]} Qc6 {[%emt 0:03:36]} 9. Nfd4 {[%emt 0:03:23]} Qxe4 {[%emt 0:00:14]} 10. Nc7 {[%emt 0:00:08]} b6 {[%emt 0:01:08]} 11. Be2 {[%emt 0:00:19]} Qb7 {[%emt 0:01:10]} 12. Nxa8 {[%emt 0:00:07]} Qxa8 {[%emt 0:00:12]} 13. Bf3 {[%emt 0:02:37]} d5 {[%emt 0:00:22]} 14. Nb5 {[%emt 0:12:39]} Na6 {[%emt 0:02:09]} 15. O-O {[%emt 0:06:53]} e5 {[%emt 0:00:54]} 16. Bg5 {[%emt 0:11:26]} Bb7 {[%emt 0:09:04]} 17. Qd2 {[%emt 0:05:30]} Rd8 {[%emt 0:03:03]} 18. Rfe1 {[%emt 0:03:38]} Qb8 {[%emt 0:00:15]} 19. Rad1 {[%emt 0:02:54]} Nc5 {[%emt 0:01:14]} 20. Qe3 {[%emt 0:08:06]} Ba6 {[%emt 0:15:06]} 21. Na3 {[%emt 0:05:22]} e4 {[%emt 0:01:49]} 22. Be2 {[%emt 0:00:16]} Nd3 {[%emt 0:00:44]} 23. Bxd3 {[%emt 0:00:38]} Bxd3 {[%emt 0:00:13]} 24. f3 {[%emt 0:01:18]} b5 {[%emt 0:04:02]} 25. Qf2 {[%emt 0:01:00]} b4 {[%emt 0:02:18]} 26. Nb1 {[%emt 0:02:17]} Qd6 {[%emt 0:01:49]} 27. Bxf6 {[%emt 0:01:22]} Bxf6 {[%emt 0:00:42]} 28. fxe4 {[%emt 0:00:50]} dxe4 {[%emt 0:00:52]} 29. Rxe4 {[%emt 0:01:28]} Bxe4 {[%emt 0:00:22]} 30. Rxd6 {[%emt 0:00:02]} Rxd6 31. Qe1 Bc2 {[%emt 0:02:07]} 32. Kf2 {[%emt 0:01:58]} Kg7 {[%emt 0:04:17]} 33. cxb4 {[%emt 0:00:54]} Rd1 {[%emt 0:00:14]} 34. Qe2 {[%emt 0:00:53]} Rxb1 {[%emt 0:00:10]} 35. Qc4 {[%emt 0:01:14]} Rxb2 {[%emt 0:00:17]} 36. Kg3 {[%emt 0:00:26]} h5 {[%emt 0:01:20]} 37. Kf3 {[%emt 0:01:11]} Bf5 {[%emt 0:00:22]} 38. h3 {[%emt 0:00:27]} Be6 {[%emt 0:00:11]} 39. Qc5 {[%emt 0:00:45]} Rxa2 {[%emt 0:00:13]} 40. b5 {[%emt 0:00:14]} Ra5 {[%emt 0:01:59]} 41. g4 {[%emt 0:00:46]} hxg4+ {[%emt 0:00:15]} 42. hxg4 {[%emt 0:00:02]} g5 {[%emt 0:00:24]} 43. Qb4 {[%emt 0:00:42]} Ra2 {[%emt 0:00:23]} 44. Qc5 {[%emt 0:00:20]} Rb2 {[%emt 0:00:26]} 45. Qxa7 {[%emt 0:01:04]} Rb3+ {[%emt 0:00:24]} 46. Kf2 {[%emt 0:00:39]} Rxb5 {[%emt 0:01:59]} 47. Qa4 {[%emt 0:00:10]} Rd5 {[%emt 0:00:12]} 48. Qc6 {[%emt 0:00:44]} Rd4 {[%emt 0:00:12]} 49. Qc5 {[%emt 0:00:35]} Rxg4 {[%emt 0:00:13]} 50. Kf3 {[%emt 0:00:09]} Rc4 {[%emt 0:00:15]} 51. Qa7 {[%emt 0:00:45]} g4+ {[%emt 0:00:14]} 52. Kg2 {[%emt 0:00:19]} Rc2+ {[%emt 0:00:18]} 53. Kg1 {[%emt 0:00:29]} Rd2 {[%emt 0:00:54]} 54. Qc7 {[%emt 0:00:15]} Bd4+ {[%emt 0:02:24]} 55. Kf1 {[%emt 0:00:07]} Rf2+ {[%emt 0:00:23]} 56. Ke1 {[%emt 0:00:08]} Rf5 {[%emt 0:00:58]} 57. Qh2 {[%emt 0:00:34]} Bf2+ {[%emt 0:00:57]} 58. Kd2 {[%emt 0:00:38]} g3 {[%emt 0:00:23]} 59. Qg2 {[%emt 0:00:28]} Rg5 {[%emt 0:00:26]} 0-1

[Event "Almaty Open 2019"]
[Site "Almaty"]
[Date "2019.10.10"]
[Round "5.15"]
[White "Nukin, Tolegen"]
[Black "Bizhigitov, Zhangir"]
[Result "1-0"]
[ECO "C01"]
[WhiteElo "2104"]
[BlackElo "2018"]
[Annotator "ChessBase"]
[PlyCount "133"]
[EventDate "2019.10.07"]
[EventType "swiss"]
[EventCountry "KAZ"]
[SourceTitle "playchess.com"]
[Source "ChessBase"]
[SourceQuality "1"]
[TimeControl "5400+30"]

1. e4 {[%emt 0:10:53]} e6 {[%emt 0:00:00]} 2. d4 {[%emt 0:00:16]} d5 {[%emt 0:00:11]} 3. exd5 {[%emt 0:00:05]} exd5 {[%emt 0:00:09]} 4. c4 {[%emt 0:00:01]} Nf6 {[%emt 0:00:48]} 5. Nc3 {[%emt 0:00:05]} Be7 {[%emt 0:00:41]} 6. Nf3 {[%emt 0:01:26]} O-O {[%emt 0:00:41]} 7. cxd5 {[%emt 0:00:46]} Nxd5 {[%emt 0:02:08]} 8. Bc4 {[%emt 0:01:38]} Nb6 {[%emt 0:01:24]} 9. Bb3 {[%emt 0:01:07]} Bg4 {[%emt 0:08:34]} 10. h3 {[%emt 0:02:28]} Bh5 {[%emt 0:00:53]} 11. g4 {[%emt 0:01:11]} Bg6 {[%emt 0:00:27]} 12. h4 {[%emt 0:00:26]} Bb4 {[%emt 0:13:29]} 13. Ng5 {[%emt 0:01:22]} Qe8+ {[%emt 0:27:29]} 14. Kf1 {[%emt 0:07:38]} Bxc3 {[%emt 0:04:06]} 15. bxc3 {[%emt 0:00:41]} Qc6 {[%emt 0:00:23]} 16. Rh3 {[%emt 0:01:56]} N8d7 {[%emt 0:09:40]} 17. Kg1 {[%emt 0:08:07]} h6 {[%emt 0:10:32]} 18. h5 {[%emt 0:01:06]} Be4 {[%emt 0:00:24]} 19. Nxe4 {[%emt 0:03:49]} Qxe4 {[%emt 0:00:04]} 20. Ba3 {[%emt 0:02:11]} Rfe8 {[%emt 0:01:13]} 21. Bc2 {[%emt 0:05:56]} Qe6 {[%emt 0:03:06]} 22. Re3 {[%emt 0:01:39]} Qc6 {[%emt 0:05:55]} 23. Qd3 {[%emt 0:01:30]} Nf6 {[%emt 0:00:22]} 24. Be7 {[%emt 0:08:03]} Nbd5 {[%emt 0:00:39]} 25. Bxf6 {[%emt 0:00:25]} Nxf6 {[%emt 0:00:02]} 26. Rae1 {[%emt 0:00:25]} Rxe3 {[%emt 0:01:27]} 27. Rxe3 {[%emt 0:00:02]} Re8 {[%emt 0:00:21]} 28. Rxe8+ {[%emt 0:03:03]} Qxe8 {[%emt 0:00:59]} 29. Qf3 {[%emt 0:08:53]} Qb5 {[%emt 0:02:42]} 30. Kg2 {[%emt 0:02:19]} Qd5 {[%emt 0:04:46]} 31. Bb3 {[%emt 0:00:41]} Qe4 {[%emt 0:01:01]} 32. Qxe4 {[%emt 0:03:19]} Nxe4 {[%emt 0:00:01]} 33. c4 {[%emt 0:00:01]} Nd2 {[%emt 0:01:04]} 34. f3 {[%emt 0:04:11]} a5 {[%emt 0:00:11]} 35. Kg3 {[%emt 0:10:11]} Kf8 {[%emt 0:00:43]} 36. Kf4 {[%emt 0:00:41]} a4 {[%emt 0:00:10]} 37. Bxa4 {[%emt 0:00:03]} Nxc4 {[%emt 0:00:03]} 38. Bb5 {[%emt 0:02:51]} Nd6 {[%emt 0:00:35]} 39. Bd3 {[%emt 0:00:02]} Ke7 {[%emt 0:01:07]} 40. Ke5 {[%emt 0:00:27]} c6 {[%emt 0:00:45]} 41. Kf4 {[%emt 0:01:09]} Ke6 {[%emt 0:00:21]} 42. Be4 {[%emt 0:02:24]} Nb5 {[%emt 0:00:18]} 43. Ke3 {[%emt 0:00:05]} Nc3 {[%emt 0:00:08]} 44. a3 {[%emt 0:00:22]} Nb5 {[%emt 0:01:11]} 45. a4 {[%emt 0:00:02]} Nc3 {[%emt 0:00:07]} 46. a5 {[%emt 0:00:25]} Kd6 {[%emt 0:00:26]} 47. Kd3 {[%emt 0:00:11]} Nb5 {[%emt 0:00:13]} 48. Kc4 {[%emt 0:00:11]} Nc7 {[%emt 0:00:06]} 49. Bf5 {[%emt 0:01:10]} Nd5 {[%emt 0:00:28]} 50. Be4 {[%emt 0:01:13]} Nf4 {[%emt 0:01:11]} 51. Bc2 {[%emt 0:02:29]} g6 {[%emt 0:00:29]} 52. g5 {[%emt 0:00:13]} Ne6 {[%emt 0:01:12]} 53. gxh6 {[%emt 0:00:57]} Nf8 {[%emt 0:00:11]} 54. hxg6 {[%emt 0:00:21]} fxg6 {[%emt 0:00:04]} 55. f4 {[%emt 0:00:40]} Ke6 {[%emt 0:00:18]} 56. h7 {[%emt 0:02:11]} Nxh7 {[%emt 0:00:03]} 57. Kc5 {[%emt 0:00:06]} Kd7 {[%emt 0:00:29]} 58. Bxg6 {[%emt 0:01:25]} Nf6 {[%emt 0:00:16]} 59. Kb6 {[%emt 0:00:39]} Kc8 {[%emt 0:00:04]} 60. Bf5+ {[%emt 0:00:24]} Kb8 {[%emt 0:00:08]} 61. Be6 {[%emt 0:00:33]} Ne8 {[%emt 0:02:37]} 62. a6 {[%emt 0:00:40]} Nd6 {[%emt 0:00:31]} 63. axb7 {[%emt 0:00:27]} c5 {[%emt 0:00:36]} 64. dxc5 {[%emt 0:00:37]} Nc4+ {[%emt 0:00:33]} 65. Kb5 {[%emt 0:00:28]} Ne3 {[%emt 0:00:22]} 66. c6 {[%emt 0:00:23]} Kc7 {[%emt 0:00:33]} 67. Kc5 {[%emt 0:00:20]} 1-0

[Event "Almaty Open 2019"]
[Site "Almaty"]
[Date "2019.10.10"]
[Round "5.16"]
[White "Kairbekova, Amina"]
[Black "Igen, Amir"]
[Result "1-0"]
[ECO "B56"]
[WhiteElo "2096"]
[BlackElo "1934"]
[Annotator "NA"]
[PlyCount "97"]
[EventDate "2019.10.07"]
[EventType "swiss"]
[EventCountry "KAZ"]
[SourceTitle "playchess.com"]
[Source "ChessBase"]
[SourceQuality "1"]
[TimeControl "5400+30"]

1. e4 {[%emt 0:00:00]} c5 {[%emt 0:00:00]} 2. Nf3 {[%emt 0:00:00]} d6 {[%emt 0:00:00]} 3. d4 {[%emt 0:00:00]} cxd4 {[%emt 0:00:00]} 4. Nxd4 {[%emt 0:00:00]} Nf6 $14 {[%emt 0:00:09]} 5. Nc3 {[%emt 0:00:00]} Nc6 {[%emt 0:00:16]} 6. Nb3 {[%emt 0:02:15]} e6 {[%emt 0:02:08]} 7. g4 {[%emt 0:00:12]} d5 {[%emt 0:11:33]} 8. g5 {[%emt 0:06:09]} Nxe4 {[%emt 0:00:06]} 9. Nxe4 {[%emt 0:00:00]} dxe4 {[%emt 0:00:10]} 10. Qxd8+ Nxd8 {[%emt 0:03:26]} 11. Bg2 {[%emt 0:00:28]} Bd7 {[%emt 0:00:12]} 12. Bxe4 {[%emt 0:19:55]} Bc6 {[%emt 0:00:10]} 13. Bxc6+ {[%emt 0:00:04]} Nxc6 {[%emt 0:00:08]} 14. Ke2 {[%emt 0:05:13]} O-O-O {[%emt 0:00:39]} 15. Be3 {[%emt 0:00:07]} g6 {[%emt 0:07:54]} 16. c3 {[%emt 0:02:30]} Bg7 {[%emt 0:01:25]} 17. Rad1 {[%emt 0:03:58]} Rxd1 {[%emt 0:01:51]} 18. Rxd1 {[%emt 0:02:22]} h6 {[%emt 0:03:16]} 19. h4 {[%emt 0:01:04]} h5 {[%emt 0:00:30]} 20. Nc5 {[%emt 0:01:05]} Bf8 {[%emt 0:08:10]} 21. Ne4 {[%emt 0:03:56]} Be7 {[%emt 0:00:17]} 22. b4 {[%emt 0:00:42]} b6 {[%emt 0:02:52]} 23. b5 {[%emt 0:06:21]} Na5 {[%emt 0:02:50]} 24. c4 {[%emt 0:12:48]} Nb7 {[%emt 0:01:23]} 25. a4 {[%emt 0:07:52]} Rd8 {[%emt 0:02:28]} 26. Rc1 {[%emt 0:00:34]} Kb8 {[%emt 0:09:49]} 27. Rc3 {[%emt 0:02:40]} Rc8 {[%emt 0:11:28]} 28. Bd4 {[%emt 0:00:58]} Bb4 {[%emt 0:09:24]} 29. Be5+ {[%emt 0:01:30]} Ka8 {[%emt 0:00:01]} 30. Rf3 {[%emt 0:00:41]} Nd8 {[%emt 0:07:25]} 31. Kd3 {[%emt 0:00:30]} Be7 {[%emt 0:00:41]} 32. Rf4 {[%emt 0:03:20]} Bb4 {[%emt 0:04:26]} 33. Rf3 {[%emt 0:05:11]} Be7 {[%emt 0:02:34]} 34. Kd4 {[%emt 0:04:53]} a6 {[%emt 0:04:02]} 35. Bg3 {[%emt 0:04:39]} Ka7 {[%emt 0:00:57]} 36. Bd6 {[%emt 0:02:52]} Bxd6 {[%emt 0:00:33]} 37. Nxd6 {[%emt 0:00:01]} Rc7 {[%emt 0:00:09]} 38. Ke5 {[%emt 0:00:06]} a5 {[%emt 0:04:03]} 39. Kf6 {[%emt 0:03:10]} Rd7 {[%emt 0:00:39]} 40. Ke5 {[%emt 0:01:13]} Kb8 {[%emt 0:00:36]} 41. Rf4 {[%emt 0:00:36]} Kc7 {[%emt 0:00:17]} 42. Ne8+ {[%emt 0:00:06]} Kc8 {[%emt 0:00:13]} 43. Nd6+ {[%emt 0:00:51]} Kc7 {[%emt 0:00:03]} 44. Ne8+ {[%emt 0:00:03]} Kc8 {[%emt 0:00:04]} 45. Kf6 Ra7 {[%emt 0:02:13]} 46. Nd6+ {[%emt 0:00:32]} Kb8 {[%emt 0:00:23]} 47. Kg7 {[%emt 0:00:35]} e5 {[%emt 0:00:06]} 48. Rf6 {[%emt 0:00:54]} Ne6+ {[%emt 0:00:23]} 49. Kg8 {[%emt 0:00:14]} 1-0